bitfinex/quotes_ETHUSD_20250123
["timestamp","ask_amount","ask_price","bid_price","bid_amount"]
[1737607360705,3.13263,3192.3,3191.5,3.88871]
[1737607361076,3.13263,3192.3,3191.6,3.13322]
[1737607361276,3.13286,3192.0,3191.5,0.7554]
[1737607361476,3.13264,3192.2,3191.5,0.7554]
[1737607361705,3.13273,3192.1,3191.5,0.7554]
[1737607361876,3.13262,3192.3,3191.5,0.7554]
[1737607362068,3.13265,3192.2,3191.5,3.88871]
[1737607362264,3.13265,3192.2,3191.5,0.7554]
[1737607362265,3.13282,3192.1,3191.5,0.7554]
[1737607362585,3.759178,3192.2,3191.0,0.7813]
[1737607362900,3.759178,3192.2,3190.6,0.7813]
[1737607362901,3.1334,3191.5,3190.6,0.7813]
[1737607363106,3.13352,3191.3,3190.6,0.7813]
[1737607363305,3.13379,3191.1,3190.6,0.7813]
[1737607363483,3.13383,3191.0,3190.6,0.7813]
[1737607363881,3.13385,3191.0,3190.6,0.7813]
[1737607364471,3.0,3191.5,3190.1,0.7813]
[1737607364667,3.13428,3190.6,3190.1,0.7813]
[1737607364873,3.13432,3190.5,3189.7,0.81264344]
[1737607365103,3.13372,3191.1,3190.1,0.55]
[1737607365307,3.13423,3190.6,3190.2,0.03134206]
[1737607365600,3.13423,3190.6,3190.0,0.03134208]
[1737607365802,3.13432,3190.5,3190.0,0.55]
[1737607366008,3.1349,3189.9,3189.7,0.7813]
[1737607366231,3.13469,3190.2,3189.7,0.7813]
[1737607366407,3.13487,3190.0,3189.7,0.7813]
[1737607366804,3.13487,3190.0,3189.8,0.55]
[1737607367005,3.13509,3189.7,3189.6,3.23888146]
[1737607367413,3.13528,3189.5,3189.4,0.03]
[1737607367613,3.92978,3189.5,3189.4,1e-05]
[1737607367914,6.92978,3189.5,3189.4,1e-05]
[1737607368313,10.94406055,3189.5,3189.4,1e-05]
[1737607368499,12.35197561,3189.5,3189.4,1e-05]
[1737607369436,8.33769506,3189.5,3189.4,1e-05]
[1737607369637,3.13528,3189.5,3189.4,1e-05]
[1737607371348,3.1349,3189.9,3189.4,1e-05]
[1737607371486,3.1349,3189.9,3189.5,0.55]
[1737607371825,3.1346,3190.2,3189.5,3.71660929]
[1737607372119,3.13441,3190.4,3189.8,0.55]
[1737607372322,0.7945,3191.0,3189.6,0.55]
[1737607372526,3.13482,3190.0,3189.6,0.55]
[1737607372723,3.13465,3190.2,3189.5,0.55]
[1737607372929,3.13462,3190.2,3189.6,0.03134713]
[1737607373105,3.13471,3190.1,3189.5,0.55]
[1737607373306,3.13471,3190.1,3189.6,0.03134714]
[1737607373507,3.13471,3190.1,3189.5,0.55]
[1737607373741,3.13401,3190.8,3189.5,0.996668]
[1737607373908,3.13401,3190.8,3189.5,0.55]
[1737607373909,3.1345,3190.3,3189.5,0.55]
[1737607374496,3.13472,3190.1,3189.5,0.55]
[1737607374697,3.13472,3190.1,3189.5,0.58134713]
[1737607375695,0.45571727,3190.9,3189.5,0.58134713]
[1737607375900,3.1348,3190.0,3189.5,0.55]
[1737607377127,3.1346,3190.2,3189.5,0.55]
[1737607377534,3.13407,3190.8,3189.6,0.03134714]
[1737607377732,3.13417,3190.7,3190.0,0.55]
[1737607378030,3.13417,3190.7,3190.1,0.03134243]
[1737607378334,3.13391,3190.9,3190.3,0.55]
[1737607378932,3.13363,3191.2,3190.3,0.55]
[1737607379094,3.13393,3190.9,3190.3,0.58133913]
[1737607379300,3.13369,3191.2,3190.3,3.71579913]
[1737607379500,3.13369,3191.2,3190.3,1.38166817]
[1737607379800,3.13393,3190.9,3190.3,1.38166817]
[1737607380207,3.13371,3191.1,3190.3,4.51614817]
[1737607380432,3.13365,3191.2,3190.5,0.55]
[1737607380737,3.13353,3191.3,3190.7,0.55]
[1737607380934,0.7945,3191.9,3190.8,0.03133692]
[1737607381100,3.13369,3191.2,3190.5,0.58133692]
[1737607381432,0.313369,3191.2,3190.2,0.7813]
[1737607381634,0.7945,3191.9,3190.2,0.7813]
[1737607381635,3.13425,3190.6,3190.2,0.7813]
[1737607381811,3.13437,3190.5,3190.2,0.7813]
[1737607382230,3.13437,3190.5,3190.3,0.55]
[1737607382408,0.7945,3191.0,3189.7,0.7813]
[1737607382608,3.13452,3190.3,3189.8,0.03134606]
[1737607382821,3.13452,3190.3,3189.7,0.7813]
[1737607383036,3.1345,3190.3,3189.7,0.81264605]
[1737607383334,3.13391,3190.9,3189.7,0.7813]
[1737607383634,3.13419,3190.7,3190.0,0.55]
[1737607383804,3.13419,3190.7,3190.1,0.03134286]
[1737607384636,3.13421,3190.6,3190.1,0.03134286]
[1737607384821,3.13421,3190.6,3190.1,0.55]
[1737607385409,3.13428,3190.6,3189.9,0.03134222]
[1737607385717,3.13439,3190.5,3189.9,0.03134222]
[1737607385914,0.62685,3190.5,3189.7,0.7813]
[1737607386241,3.13528,3189.5,3189.4,1e-05]
[1737607387108,3.13459,3190.3,3189.4,1e-05]
[1737607387437,3.13511,3189.7,3189.4,1e-05]
[1737607387615,3.13528,3189.5,3189.4,1e-05]
[1737607389138,3.13492,3189.9,3189.4,1e-05]
[1737607389332,3.13512,3189.7,3189.4,1e-05]
[1737607389729,3.13511,3189.7,3189.4,1e-05]
[1737607390640,3.13519,3189.6,3189.4,1e-05]
[1737607391741,3.13502,3189.8,3189.4,1e-05]
[1737607392442,3.13455,3190.3,3189.5,0.55]
[1737607392645,3.13455,3190.3,3189.7,1.3149]
[1737607392823,3.13467,3190.2,3189.7,1.3149]
[1737607393026,3.13442,3190.4,3189.8,0.03134684]
[1737607393221,3.13442,3190.4,3189.9,0.55]
[1737607393422,3.13442,3190.4,3190.0,0.03134453]
[1737607393623,3.13426,3190.6,3190.0,0.58134453]
[1737607393817,3.13384,3191.0,3190.4,0.55]
[1737607394019,3.13384,3191.0,3190.0,1.00796798]
[1737607394020,3.13361,3191.2,3190.6,4.44906]
[1737607394346,3.13361,3191.2,3190.7,0.03133707]
[1737607394937,3.13342,3191.4,3190.8,0.55]
[1737607395141,3.13342,3191.4,3190.9,0.03133543]
[1737607396133,3.13353,3191.3,3190.9,0.03133543]
[1737607396333,3.13342,3191.4,3190.8,0.55]
[1737607396930,3.13361,3191.2,3190.7,0.58133546]
[1737607397249,3.13361,3191.2,3190.7,0.55]
[1737607397417,3.13372,3191.1,3190.7,0.55]
[1737607397613,3.13317,3191.7,3190.7,0.55]
[1737607397818,0.313317,3191.6,3190.7,0.55]
[1737607398136,3.13369,3191.2,3190.7,0.55]
[1737607398342,6.26778,3191.0,3190.6,0.7649]
[1737607398538,3.13285,3192.0,3190.7,0.03133938]
[1737607398859,3.13257,3192.3,3191.8,0.55]
[1737607399214,3.13234,3192.5,3191.8,0.55]
[1737607399448,3.13185,3193.0,3192.2,0.55]
[1737607399621,3.13166,3193.2,3192.5,0.55]
[1737607399822,3.13166,3193.2,3192.7,0.55]
[1737607400018,3.13147,3193.4,3192.7,0.55]
[1737607400250,3.13143,3193.5,3192.7,0.55]
[1737607400427,3.13147,3193.4,3192.7,3.71344946]
[1737607400627,3.13152,3193.4,3192.7,0.58131946]
[1737607400817,3.13163,3193.3,3192.7,0.58131946]
[1737607401024,0.468856,3193.3,3192.7,0.55]
[1737607401220,3.13219,3192.7,3192.1,0.8154]
[1737607401424,3.13195,3192.9,3192.1,3.94811]
[1737607401755,3.1322,3192.7,3192.2,0.55]
[1737607402118,3.13194,3193.0,3192.3,0.03132141]
[1737607402322,0.7718,3193.8,3192.2,3.68261]
[1737607402631,3.13185,3193.0,3192.2,0.55]
[1737607402841,3.13185,3193.0,3192.2,3.6826]
[1737607403048,3.13166,3193.2,3192.4,0.55]
[1737607403354,3.13166,3193.2,3192.6,0.55]
[1737607403520,3.13182,3193.1,3192.4,0.58131818]
[1737607403725,3.13182,3193.1,3192.4,3.71371818]
[1737607403961,3.13156,3193.3,3192.4,3.71371818]
[1737607404136,3.13202,3192.9,3192.2,3.68258]
[1737607404328,0.313156,3193.3,3192.2,0.55]
[1737607404329,3.13227,3192.6,3192.2,0.55]
[1737607404755,3.13234,3192.5,3192.2,0.55]
[1737607405439,3.13253,3192.3,3192.2,0.55]
[1737607406447,3.13253,3192.3,3191.0,3.13376]
[1737607406448,3.13263,3192.2,3191.2,0.8154]
[1737607406761,3.13281,3192.1,3191.4,3.13332]
[1737607406955,3.13285,3192.0,3191.3,0.394905]
[1737607407143,3.0,3192.8,3191.2,0.84672784]
[1737607407349,3.7718,3192.9,3191.3,3.13343]
[1737607407565,0.7718,3192.9,3191.4,3.16474015]
[1737607407766,3.1326,3192.3,3191.5,0.03132601]
[1737607407970,3.13267,3192.2,3191.4,3.13341]
[1737607408150,3.1326,3192.3,3191.5,0.55]
[1737607408350,3.13276,3192.1,3191.5,0.55]
[1737607408751,3.13276,3192.1,3191.6,0.58132671]
[1737607408985,3.1326,3192.3,3191.6,0.58132671]
[1737607409281,3.13267,3192.2,3191.6,0.58132671]
[1737607409585,3.13264,3192.2,3191.6,0.58132671]
[1737607409761,3.13235,3192.5,3191.6,0.03132671]
[1737607409964,3.13263,3192.2,3191.7,0.55]
[1737607410160,3.13274,3192.1,3191.6,0.03132622]
[1737607410366,3.13274,3192.1,3191.5,0.55]
[1737607411653,3.13284,3192.0,3191.5,0.55]
[1737607412180,3.1327,3192.2,3191.5,0.55]
[1737607412386,3.13274,3192.1,3191.5,4.08296521]
[1737607413595,3.1329,3192.0,3191.5,0.918338]
[1737607413756,3.1329,3192.0,3191.2,3.94899]
[1737607414083,3.13293,3191.9,3191.3,0.55]
[1737607414690,3.13293,3191.9,3191.4,0.03132879]
[1737607415088,3.1323,3192.6,3191.4,0.03132879]
[1737607415292,3.13209,3192.8,3192.3,0.55]
[1737607415476,3.13204,3192.8,3192.3,0.58132132]
[1737607415791,3.13202,3192.9,3192.3,0.58132132]
[1737607416091,3.13225,3192.6,3192.3,0.55]
[1737607416407,3.13177,3193.1,3192.5,0.55]
[1737607416573,3.13177,3193.1,3192.6,0.03131816]
[1737607416753,3.13158,3193.3,3192.6,0.58131816]
[1737607416957,3.13158,3193.3,3192.6,3.71354816]
[1737607417453,0.626294,3193.3,3192.6,0.03131816]
[1737607417691,3.13214,3192.7,3192.2,0.8326]
[1737607417863,3.132,3192.9,3192.2,0.8326]
[1737607418064,3.13243,3192.4,3192.3,0.55]
[1737607418293,3.13243,3192.4,3191.6,0.8326]
[1737607418597,0.7531,3193.3,3191.7,0.0313241]
[1737607418756,3.1318,3193.1,3191.9,0.55]
[1737607418953,3.13168,3193.2,3192.4,0.55]
[1737607419274,3.13168,3193.2,3192.7,0.55]
[1737607419875,3.13156,3193.3,3192.7,0.55]
[1737607419876,1.38563709,3193.8,3192.7,0.58131808]
[1737607420087,0.45167971,3193.6,3192.7,0.58131808]
[1737607420280,3.13143,3193.5,3192.7,0.58131808]
[1737607420455,3.13158,3193.3,3192.7,0.58131808]
[1737607420657,3.13161,3193.3,3192.7,0.58131808]
[1737607421157,1.38563709,3193.8,3192.7,0.58131808]
[1737607421158,3.13174,3193.2,3192.7,0.55]
[1737607421358,3.13176,3193.1,3192.7,0.55]
[1737607422677,3.13204,3192.8,3191.9,0.8326]
[1737607423022,3.13231,3192.6,3191.9,0.8326]
[1737607423385,3.13231,3192.6,3192.0,0.55]
[1737607423591,3.13231,3192.6,3192.0,0.58132378]
[1737607424805,3.13226,3192.6,3192.1,0.03132377]
[1737607425195,0.626438,3192.6,3191.5,0.48066536]
[1737607425400,3.61542228,3192.2,3190.8,0.8326]
[1737607425705,3.61542228,3192.2,3190.9,0.0313329]
[1737607425706,3.13288,3192.0,3190.9,0.0313329]
[1737607425907,3.13309,3191.8,3190.9,3.1652229]
[1737607426204,0.7531,3192.7,3191.4,1.3826]
[1737607426205,3.13236,3192.5,3191.4,1.3826]
[1737607426410,3.13211,3192.8,3191.9,0.55]
[1737607426704,3.13211,3192.8,3192.0,0.03132348]
[1737607426911,3.13208,3192.8,3192.1,0.8326]
[1737607427071,3.13208,3192.8,3192.2,0.58132163]
[1737607427918,3.13181,3193.1,3192.2,2.58132163]
[1737607428073,3.13185,3193.0,3192.4,0.55]
[1737607428475,3.13223,3192.7,3192.1,0.8326]
[1737607428698,6.74688228,3193.4,3192.1,0.8326]
[1737607429008,3.13231,3192.6,3192.1,0.8326]
[1737607429205,3.13231,3192.6,3192.2,0.55]
[1737607429730,3.13206,3192.8,3192.2,0.55]
[1737607430434,3.13165,3193.2,3192.3,0.03132368]
[1737607430580,3.13165,3193.2,3192.4,0.37139337]
[1737607430781,3.13165,3193.2,3192.5,0.03131976]
[1737607431441,0.7531,3194.1,3192.6,0.8326]
[1737607431597,3.13083,3194.1,3193.2,3.13164]
[1737607431926,1.251826,3193.5,3193.4,0.8326]
[1737607432078,1.251826,3193.5,3193.4,1.3826]
[1737607432507,3.13083,3194.1,3193.5,0.55]
[1737607433232,3.13063,3194.3,3193.6,0.03131086]
[1737607433395,3.13068,3194.2,3193.5,0.55]
[1737607433592,3.13047,3194.4,3193.6,0.03130821]
[1737607433898,1.251386,3194.7,3193.6,0.03130821]
[1737607434112,3.13068,3194.2,3193.6,0.03130821]
[1737607434635,3.13038,3194.5,3193.6,0.03130821]
[1737607434780,3.13052,3194.4,3193.6,0.03130821]
[1737607435381,4.381566,3194.7,3193.7,0.55]
[1737607435612,3.12977,3195.2,3193.8,0.03130511]
[1737607435812,3.13033,3194.6,3193.8,0.03130511]
[1737607436782,3.1301,3194.8,3193.9,1.3826]
[1737607436977,3.67991,3195.0,3194.0,0.03130395]
[1737607437233,3.13019,3194.7,3194.0,0.03130395]
[1737607437879,0.55,3195.0,3194.0,0.03130395]
[1737607438076,3.13025,3194.7,3194.0,0.03130395]
[1737607439531,0.55,3195.0,3193.9,1.4139039]
[1737607439532,3.1301,3194.8,3193.9,1.4139039]
[1737607439741,0.31301,3194.7,3193.9,1.4139039]
[1737607439919,3.1301,3194.8,3193.9,1.4139039]
[1737607440542,3.13087,3194.0,3193.1,2.0]
[1737607440722,3.61542228,3194.6,3193.2,0.8326]
[1737607441017,3.13094,3194.0,3193.2,0.8326]
[1737607441185,3.13107,3193.8,3193.2,0.8326]
[1737607441582,3.13094,3194.0,3193.3,0.55]
[1737607441839,3.13048,3194.4,3193.5,3.13126]
[1737607442003,6.74570228,3194.6,3193.7,1.3826]
[1737607442004,3.13028,3194.6,3193.7,1.3826]
[1737607442206,4.16542228,3195.0,3193.8,0.03130594]
[1737607442207,3.1305,3194.4,3193.8,0.03130594]
[1737607443041,3.1305,3194.4,3193.7,1.41390547]
[1737607443483,3.13038,3194.5,3192.9,3.13188]
[1737607443681,3.131,3193.9,3193.3,0.8326]
[1737607444121,3.1315,3193.4,3192.5,0.8326]
[1737607444327,3.1315,3193.4,3192.6,0.03131655]
[1737607444488,3.1315,3193.4,3192.7,0.39962466]
[1737607444837,3.61542228,3193.8,3192.6,0.55]
[1737607445017,3.13177,3193.1,3192.6,0.55]
[1737607445659,3.13155,3193.3,3192.6,0.55]
[1737607445944,3.13155,3193.3,3192.5,0.8326]
[1737607446110,3.13136,3193.5,3192.6,0.58131655]
[1737607446311,3.1316,3193.3,3192.6,1.00462166]
[1737607446537,3.1316,3193.3,3192.6,0.55]
[1737607447544,3.1316,3193.3,3192.6,0.58131655]
[1737607447870,3.7668,3193.3,3192.1,0.7767]
[1737607448017,3.13234,3192.5,3192.1,0.7767]
[1737607448569,3.1322,3192.7,3192.1,0.7767]
[1737607448713,3.13225,3192.6,3192.1,0.7767]
[1737607448922,3.13237,3192.5,3192.1,0.7767]
[1737607449380,3.13207,3192.8,3192.2,0.55]
[1737607449532,6.74729228,3193.0,3192.2,0.55]
[1737607449724,3.13215,3192.7,3192.2,0.55]
[1737607450362,3.13234,3192.5,3192.2,0.55]
[1737607450541,3.13263,3192.2,3191.3,0.7767]
[1737607450742,3.13284,3192.0,3191.4,1.21491215]
[1737607450946,3.61542228,3192.6,3191.9,3.13292]
[1737607451153,3.61542228,3192.6,3191.4,1.21491215]
[1737607451154,3.13208,3192.8,3192.2,0.55]
[1737607451354,3.13185,3193.0,3192.3,0.03132366]
[1737607451668,3.61542228,3193.4,3192.3,0.03132366]
[1737607451669,3.13184,3193.1,3192.3,0.03132194]
[1737607451880,3.13185,3193.0,3192.3,0.03132194]
[1737607452172,3.61542228,3193.4,3192.4,0.55]
[1737607452376,3.13172,3193.2,3192.4,0.55]
[1737607452527,3.13185,3193.0,3192.3,0.03132194]
[1737607452739,3.13185,3193.0,3192.2,0.58132047]
[1737607452940,3.13197,3192.9,3192.2,0.58132047]
[1737607453240,0.7668,3192.8,3191.5,0.7767]
[1737607453464,3.13264,3192.2,3191.5,0.7767]
[1737607453636,3.13243,3192.5,3191.6,0.55]
[1737607453841,3.13243,3192.5,3191.7,0.03132566]
[1737607454341,3.13216,3192.7,3192.2,0.55]
[1737607454588,3.13195,3192.9,3192.2,0.58132251]
[1737607454762,3.13205,3192.8,3192.2,0.58132251]
[1737607455274,3.13221,3192.7,3192.2,0.55]
[1737607455668,3.13221,3192.7,3192.2,0.58132253]
[1737607456842,3.13221,3192.7,3192.2,0.55]
[1737607457452,3.13194,3192.9,3192.2,0.55]
[1737607457780,3.13176,3193.1,3192.2,0.58132253]
[1737607457957,3.13162,3193.3,3192.4,3.68243]
[1737607458157,3.13162,3193.3,3192.5,0.03131724]
[1737607458358,3.13138,3193.5,3192.7,0.55]
[1737607458567,3.13138,3193.5,3192.8,0.0313155]
[1737607459075,3.13149,3193.4,3192.8,0.0313155]
[1737607459568,3.13131,3193.6,3192.9,0.55]
[1737607459770,3.13131,3193.6,3193.0,0.03131469]
[1737607459966,3.8976,3194.1,3193.1,0.55]
[1737607460180,3.8976,3194.1,3193.4,0.55]
[1737607460181,3.1308,3194.1,3193.4,0.55]
[1737607460482,0.807,3194.5,3193.4,0.55]
[1737607460483,3.1304,3194.5,3193.8,0.55]
[1737607460642,1.251559,3194.2,3194.1,3.13076]
[1737607460850,1.251559,3194.2,3194.1,3.68076]
[1737607461148,3.13,3194.9,3194.2,0.55]
[1737607461368,3.13,3194.9,3194.3,0.03130244]
[1737607465064,3.13,3194.9,3194.2,0.58130041]
[1737607465354,0.62598,3194.9,3193.9,0.7937]
[1737607465750,0.62598,3194.9,3194.3,0.55]
[1737607465950,0.61645143,3195.2,3194.3,0.55]
[1737607465951,3.12989,3195.0,3194.4,0.03130041]
[1737607466145,3.12989,3195.0,3194.3,0.58130041]
[1737607466383,3.12993,3195.0,3194.2,0.03130041]
[1737607466583,3.12993,3195.0,3194.3,0.55]
[1737607467184,3.12993,3195.0,3194.5,0.55]
[1737607467358,3.12973,3195.2,3194.5,0.55]
[1737607467550,3.12982,3195.1,3194.5,0.55]
[1737607467752,3.12997,3195.0,3194.5,0.55]
[1737607468088,3.13,3194.9,3194.5,0.55]
[1737607468389,3.12985,3195.1,3194.5,0.55]
[1737607468591,3.12985,3195.1,3194.5,0.5813004]
[1737607469283,3.12972,3195.2,3194.5,0.5813004]
[1737607469685,3.12986,3195.1,3194.5,0.5813004]
[1737607470008,3.12989,3195.0,3194.5,0.5813004]
[1737607470870,3.13019,3194.7,3194.5,0.55]
[1737607471495,3.12992,3195.0,3194.5,0.55]
[1737607471496,3.13005,3194.9,3194.5,0.55]
[1737607471791,3.12992,3195.0,3194.5,0.55]
[1737607471792,3.13016,3194.8,3194.5,0.55]
[1737607473871,3.13028,3194.6,3194.5,0.55]
[1737607474171,3.13044,3194.5,3194.1,2.0]
[1737607474374,3.13024,3194.7,3194.1,2.0]
[1737607475088,3.13036,3194.6,3194.2,0.55]
[1737607475394,3.13024,3194.7,3194.2,0.55]
[1737607476182,3.12989,3195.0,3194.4,0.55]
[1737607477294,3.1297,3195.2,3194.4,0.58129974]
[1737607477460,3.1297,3195.2,3194.6,0.55]
[1737607477792,3.1297,3195.2,3194.6,0.58129907]
[1737607478009,3.12966,3195.3,3194.6,3.71149907]
[1737607478287,3.12966,3195.3,3194.8,0.55]
[1737607478288,3.76448029,3195.3,3194.8,0.55]
[1737607478489,3.12996,3195.0,3194.8,0.55]
[1737607478853,3.12972,3195.2,3194.8,0.55]
[1737607479282,0.63482029,3195.3,3194.8,0.58129792]
[1737607479482,3.76447029,3195.3,3194.8,0.58129792]
[1737607479884,3.1298,3195.1,3194.8,0.55]
[1737607482264,6.89413029,3195.3,3194.8,0.55]
[1737607482466,6.12969,3195.2,3194.8,0.55]
[1737607482705,0.63482029,3195.3,3194.8,0.55]
[1737607482998,3.12942,3195.5,3194.8,3.71135789]
[1737607483197,3.0,3195.4,3194.8,3.71135789]
[1737607483398,3.12963,3195.3,3194.8,0.55]
[1737607483972,3.0,3195.4,3194.7,0.7723]
[1737607484173,3.13008,3194.8,3194.7,0.7723]
[1737607484377,3.13008,3194.8,3194.2,3.94376114]
[1737607485079,3.12971,3195.2,3194.6,0.55]
[1737607485263,3.0,3195.4,3194.9,0.55]
[1737607485464,3.0,3195.4,3194.9,0.58129648]
[1737607486429,3.1292,3195.7,3194.9,4.16056713]
[1737607486570,3.1292,3195.7,3194.9,0.55]
[1737607486571,3.12951,3195.4,3194.9,0.55]
[1737607487699,3.12932,3195.6,3194.9,3.67997]
[1737607487904,3.12913,3195.8,3194.9,3.67997]
[1737607487905,3.12913,3195.8,3195.0,0.03129497]
[1737607488106,3.12922,3195.7,3195.1,0.55]
[1737607488698,3.90254727,3196.0,3195.4,0.55]
[1737607488879,3.12911,3195.8,3195.4,0.55]
[1737607489275,3.12901,3195.9,3195.4,0.55]
[1737607489799,3.12913,3195.8,3195.4,0.55]
[1737607490101,3.12902,3195.9,3195.4,0.58129259]
[1737607490306,3.12917,3195.8,3195.1,3.12972]
[1737607490516,0.1617015,3196.0,3195.8,0.7818]
[1737607490670,0.1617015,3196.0,3195.9,0.55]
[1737607490874,0.1617015,3196.0,3195.9,3.71028795]
[1737607491190,0.1617015,3196.0,3195.9,0.58128795]
[1737607491377,0.1617015,3196.0,3195.9,0.55]
[1737607491578,0.1617015,3196.0,3195.9,4.15637699]
[1737607491796,0.1617015,3196.0,3195.9,6.15637699]
[1737607492973,0.1617015,3196.0,3195.9,6.12509]
[1737607493384,0.1617015,3196.0,3195.9,6.15637453]
[1737607497172,3.12816,3196.8,3195.9,5.60637453]
[1737607497416,3.12826,3196.7,3195.9,5.57509]
[1737607498006,3.12826,3196.7,3196.0,3.6789]
[1737607498513,3.12826,3196.7,3196.0,0.55]
[1737607498722,3.12804,3196.9,3196.0,4.31986329]
[1737607498879,3.12783,3197.1,3196.3,3.67858]
[1737607499205,3.12796,3197.0,3196.3,3.70986137]
[1737607499415,3.12806,3196.9,3196.3,0.55]
[1737607499569,3.12783,3197.1,3196.3,0.55]
[1737607499570,3.12813,3196.8,3196.3,0.55]
[1737607499774,3.12813,3196.8,3196.0,3.76984329]
[1737607499992,3.12822,3196.7,3196.0,3.76984329]
[1737607500194,3.12822,3196.7,3196.1,0.55]
[1737607500792,3.12803,3196.9,3196.2,0.03128354]
[1737607501000,3.12816,3196.8,3196.2,0.03128354]
[1737607501882,3.12827,3196.7,3196.1,0.55]
[1737607502211,3.12872,3196.2,3195.8,0.7818]
[1737607502385,3.60745696,3197.0,3195.8,0.7818]
[1737607502386,0.768,3197.1,3195.9,0.03128938]
[1737607502595,3.12803,3196.9,3196.3,0.55]
[1737607502804,3.12803,3196.9,3196.4,0.03128186]
[1737607503107,3.12821,3196.8,3196.1,3.1288]
[1737607503308,3.12803,3196.9,3196.1,3.1288]
[1737607503497,3.12832,3196.6,3196.0,0.591071]
[1737607503699,3.12832,3196.6,3195.9,3.12891]
[1737607503700,3.12879,3196.2,3195.5,3.12937]
[1737607504010,3.12888,3196.1,3195.4,0.7818]
[1737607504214,3.12898,3196.0,3195.4,0.7818]
[1737607504574,3.12837,3196.6,3195.8,0.55]
[1737607504575,3.74478648,3196.4,3195.8,0.55]
[1737607504780,3.12864,3196.3,3195.8,0.55]
[1737607504987,3.12835,3196.6,3195.8,0.55]
[1737607505207,3.12835,3196.6,3196.1,0.55]
[1737607505620,3.12835,3196.6,3195.9,0.58128446]
[1737607505780,3.12835,3196.6,3195.9,3.67899]
[1737607506117,3.12835,3196.6,3196.1,0.55]
[1737607506315,3.12835,3196.6,3196.0,0.55]
[1737607506506,3.12842,3196.5,3196.0,0.55]
[1737607506836,3.12842,3196.5,3196.0,0.95500388]
[1737607507584,3.12805,3196.9,3196.2,0.55]
[1737607507811,3.12814,3196.8,3196.2,0.55]
[1737607508016,3.12825,3196.7,3196.2,0.55]
[1737607508521,3.12786,3197.1,3196.4,0.55]
[1737607508722,0.7585,3197.4,3196.4,0.55]
[1737607508885,3.12815,3196.8,3196.3,0.55]
[1737607509088,3.12786,3197.1,3196.5,0.55]
[1737607509287,3.12786,3197.1,3196.6,0.367848]
[1737607509515,3.12786,3197.1,3196.7,0.55]
[1737607509727,3.74682876,3197.2,3196.7,0.55]
[1737607509728,3.12793,3197.0,3196.7,0.55]
[1737607510033,3.12793,3197.0,3196.4,0.55]
[1737607510233,3.12793,3197.0,3196.3,0.55]
[1737607510520,3.1284,3196.6,3196.3,0.55]
[1737607510732,3.1284,3196.6,3196.1,0.8075]
[1737607511221,3.12823,3196.7,3196.2,0.55]
[1737607512933,3.12834,3196.6,3196.2,0.55]
[1737607513305,3.12819,3196.8,3196.2,0.55]
[1737607513539,3.12806,3196.9,3196.2,0.55]
[1737607513693,3.12824,3196.7,3196.2,0.55]
[1737607514640,3.12805,3196.9,3196.3,0.03128441]
[1737607514796,3.12785,3197.1,3196.4,0.55]
[1737607514999,3.12785,3197.1,3196.5,0.03128089]
[1737607515835,3.12765,3197.3,3196.7,0.55]
[1737607515991,3.12747,3197.5,3196.9,0.8075]
[1737607516197,0.61200298,3197.5,3197.0,0.55]
[1737607516509,3.12728,3197.7,3197.0,0.58127814]
[1737607516898,3.12728,3197.7,3197.2,0.55]
[1737607517897,3.1274,3197.6,3197.2,0.55]
[1737607518108,3.12763,3197.3,3196.9,0.8075]
[1737607518309,3.12763,3197.3,3196.5,5.93591]
[1737607518510,3.12741,3197.6,3196.9,0.8075]
[1737607518795,3.12724,3197.8,3196.9,0.8075]
[1737607518796,3.12724,3197.8,3197.0,6.70915507]
[1737607519006,3.12726,3197.7,3197.2,0.55]
[1737607519449,3.12726,3197.7,3197.1,0.55]
[1737607519896,3.12726,3197.7,3197.2,0.0312739]
[1737607520090,0.610994,3198.1,3197.2,0.0312739]
[1737607520339,0.610994,3198.1,3197.3,0.55]
[1737607520340,3.12695,3198.0,3197.3,0.55]
[1737607520597,3.12695,3198.0,3197.3,0.92089239]
[1737607520755,3.12679,3198.2,3197.4,0.03127273]
[1737607520951,3.12659,3198.4,3197.6,3.67728]
[1737607521280,3.12639,3198.6,3197.8,0.55]
[1737607521485,3.12639,3198.6,3197.9,0.0312664]
[1737607521998,6.88017584,3198.8,3197.9,0.0312664]
[1737607522139,0.1617015,3199.2,3198.3,0.55]
[1737607522346,0.1617015,3199.2,3198.3,0.5812634]
[1737607522599,3.2875115,3199.2,3198.4,3.12649]
[1737607522796,3.2875115,3199.2,3198.6,0.55]
[1737607523363,3.2875115,3199.2,3198.5,0.34390766]
[1737607523781,3.2875115,3199.2,3198.6,0.7773]
[1737607524328,3.12587,3199.1,3198.6,0.7773]
[1737607524488,0.1617015,3199.2,3198.6,0.7773]
[1737607524692,3.12587,3199.1,3198.6,0.7773]
[1737607524933,3.12606,3199.0,3198.6,0.7773]
[1737607525249,3.12608,3198.9,3198.6,0.7773]
[1737607525929,3.12587,3199.1,3198.6,0.7773]
[1737607526129,3.12598,3199.0,3198.6,0.7773]
[1737607526427,0.1617015,3199.2,3198.7,0.03126041]
[1737607526636,3.2874815,3199.2,3198.7,0.03126041]
[1737607526796,3.2874815,3199.2,3198.6,0.7773]
[1737607526995,3.12588,3199.1,3198.6,0.7773]
[1737607527539,0.1617015,3199.2,3198.6,0.7773]